[Event "44th Chess Olympiad Women 2022"]
[Site "Chennai"]
[Date "2022.08.08"]
[Round "10.71"]
[White "Lam, Pooja"]
[Black "Tilman, Zulmira Americo"]
[Result "1-0"]
[WhiteElo "1163"]
[BlackElo "1255"]
[Annotator "NA RC"]
[PlyCount "59"]
[EventDate "2022.??.??"]
[TimeControl "60"]

1. d4 {[%emt 0:00:03]} d6 {[%emt 0:00:22]} 2. c4 {[%emt 0:00:06]} Nf6 {[%emt 0:
00:00]} 3. g3 {[%emt 0:00:29]} c6 {[%emt 0:00:16]} 4. Bg2 {[%emt 0:00:16]} Qa5+
{[%emt 0:01:04]} 5. Bd2 {[%emt 0:00:29]} Qc7 {[%emt 0:00:14]} 6. Nc3 {[%emt 0:
00:00]} e5 {[%emt 0:00:31]} 7. e3 {[%emt 0:00:33]} Be7 {[%emt 0:00:19]} 8. Nge2
{[%emt 0:00:15]} Be6 {[%emt 0:00:15]} 9. d5 {[%emt 0:03:09]} Bd7 {[%emt 0:00:
00]} 10. O-O {[%emt 0:02:58]} cxd5 {[%emt 0:00:15]} 11. cxd5 {[%emt 0:00:24]}
O-O {[%emt 0:02:21]} 12. Rc1 {[%emt 0:04:09]} Qb6 {[%emt 0:03:11]} 13. b3 {
[%emt 0:03:05]} Na6 {[%emt 0:01:18]} 14. Be1 {[%emt 0:03:19]} Qd8 {[%emt 0:00:
00]} 15. Ne4 {[%emt 0:07:12]} Nh5 {[%emt 0:06:42]} 16. N2c3 {[%emt 0:04:47]} f5
{[%emt 0:09:56]} 17. Qxh5 {[%emt 0:01:11]} fxe4 {[%emt 0:04:09]} 18. Bxe4 {
[%emt 0:04:57]} g6 {[%emt 0:03:06]} 19. Qe2 {[%emt 0:01:44]} Bh3 {[%emt 0:00:
00]} 20. Bg2 {[%emt 0:00:41]} Bxg2 {[%emt 0:00:18]} 21. Kxg2 {[%emt 0:00:08]}
Rc8 {[%emt 0:00:21]} 22. Bd2 {[%emt 0:01:36]} Nc7 {[%emt 0:07:13]} 23. Qg4 {
[%emt 0:07:52]} Bf6 {[%emt 0:06:57]} 24. Ne4 {[%emt 0:04:39]} Nxd5 {[%emt 0:00:
00]} 25. Qe6+ {[%emt 0:00:33]} Kh8 {[%emt 0:02:01]} 26. Qxd5 {[%emt 0:00:12]}
Qd7 {[%emt 0:16:02]} 27. Rxc8 {[%emt 0:01:50]} Qxc8 {[%emt 0:03:08]} 28. Rc1 {
[%emt 0:00:18]} Qd7 {[%emt 0:02:18]} 29. Qxd6 {[%emt 0:01:07]} Qf5 {[%emt 0:00:
00]} 30. Qxf8# {[%emt 0:00:34]} 1-0

[Event "44th Chess Olympiad Women 2022"]
[Site "Chennai"]
[Date "2022.08.08"]
[Round "10.71"]
[White "da Silva, Sonizia A.Tilman"]
[Black "Shariff, Sasha Christina"]
[Result "1-0"]
[WhiteElo "1507"]
[BlackElo "1183"]
[Annotator "NA RC"]
[PlyCount "93"]
[EventDate "2022.??.??"]
[TimeControl "60"]

1. d4 {[%emt 0:00:02]} d5 {[%emt 0:00:03]} 2. c4 {[%emt 0:00:08]} e6 {[%emt 0:
00:00]} 3. Nc3 {[%emt 0:00:23]} Nf6 {[%emt 0:00:15]} 4. Nf3 {[%emt 0:00:21]}
Be7 {[%emt 0:08:04]} 5. Bf4 {[%emt 0:00:57]} O-O {[%emt 0:08:46]} 6. e3 {
[%emt 0:00:47]} Nbd7 {[%emt 0:06:16]} 7. Bd3 {[%emt 0:01:14]} b6 {[%emt 0:00:
00]} 8. O-O {[%emt 0:01:04]} Bb7 {[%emt 0:13:24]} 9. cxd5 {[%emt 0:01:43]} Nxd5
{[%emt 0:02:24]} 10. Nxd5 {[%emt 0:01:41]} exd5 {[%emt 0:00:53]} 11. Qc2 {
[%emt 0:00:48]} Nf6 {[%emt 0:03:37]} 12. Bxc7 {[%emt 0:01:39]} Qd7 {[%emt 0:00:
00]} 13. Be5 {[%emt 0:01:33]} Rac8 {[%emt 0:05:13]} 14. Qe2 {[%emt 0:00:33]}
Ne4 {[%emt 0:08:11]} 15. Rac1 {[%emt 0:02:07]} Rxc1 {[%emt 0:01:43]} 16. Rxc1 {
[%emt 0:00:12]} Rc8 {[%emt 0:02:53]} 17. Rd1 {[%emt 0:02:34]} Bd6 {[%emt 0:00:
00]} 18. Bxd6 {[%emt 0:01:12]} Qxd6 {[%emt 0:01:03]} 19. Nh4 {[%emt 0:01:48]}
Nf6 {[%emt 0:03:02]} 20. Qf3 {[%emt 0:01:55]} Re8 {[%emt 0:01:47]} 21. Nf5 {
[%emt 0:01:05]} Qc7 {[%emt 0:01:52]} 22. Qh3 {[%emt 0:06:27]} Bc8 {[%emt 0:00:
00]} 23. Qf3 {[%emt 0:02:27]} Bxf5 {[%emt 0:02:38]} 24. Qxf5 {[%emt 0:00:16]}
Qd7 {[%emt 0:00:50]} 25. Qxd7 {[%emt 0:01:45]} Nxd7 {[%emt 0:00:07]} 26. Rc1 {
[%emt 0:00:36]} Rd8 {[%emt 0:03:19]} 27. Rc7 {[%emt 0:01:29]} a5 {[%emt 0:00:
00]} 28. e4 {[%emt 0:00:26]} dxe4 {[%emt 0:00:58]} 29. Bxe4 {[%emt 0:00:13]} g6
{[%emt 0:00:14]} 30. d5 {[%emt 0:00:45]} Nf6 {[%emt 0:00:33]} 31. f3 {[%emt 0:
00:00]} Nxd5 {[%emt 0:00:31]} 32. Rc6 {[%emt 0:01:22]} f5 {[%emt 0:01:58]} 33.
Bxd5+ {[%emt 0:00:20]} Rxd5 {[%emt 0:00:37]} 34. Rxb6 {[%emt 0:00:09]} a4 {
[%emt 0:00:58]} 35. Rb4 {[%emt 0:00:36]} Rd1+ {[%emt 0:00:54]} 36. Kf2 {
[%emt 0:00:20]} Rd2+ {[%emt 0:00:28]} 37. Kg3 {[%emt 0:00:07]} g5 {[%emt 0:00:
00]} 38. h4 {[%emt 0:00:26]} f4+ {[%emt 0:01:41]} 39. Kh3 {[%emt 0:00:42]} g4+
{[%emt 0:00:38]} 40. fxg4 {[%emt 0:01:32]} Rd3+ {[%emt 0:00:37]} 41. Kh2 {
[%emt 0:30:16]} f3 {[%emt 0:30:27]} 42. gxf3 {[%emt 0:00:22]} Rxf3 {[%emt 0:00:
00]} 43. Rxa4 {[%emt 0:01:45]} Rf2+ {[%emt 0:00:15]} 44. Kg3 {[%emt 0:00:28]}
Rxb2 {[%emt 0:00:11]} 45. g5 {[%emt 0:01:01]} Rb5 {[%emt 0:00:00]} 46. Ra6 {
[%emt 0:00:00]} Kg7 {[%emt 0:00:00]} 47. Kg4 {[%emt 0:00:00]} 1-0

[Event "44th Chess Olympiad Women 2022"]
[Site "Chennai"]
[Date "2022.08.08"]
[Round "10.72"]
[White "Moreno, Akiane"]
[Black "Oyenga, Justine Anassika"]
[Result "1/2-1/2"]
[WhiteElo "1232"]
[BlackElo "1223"]
[Annotator "NA RC"]
[PlyCount "69"]
[EventDate "2022.??.??"]
[TimeControl "60"]

1. e4 {[%emt 0:00:04]} c5 {[%emt 0:00:09]} 2. Nf3 {[%emt 0:00:39]} Nc6 {
[%emt 0:00:09]} 3. Bc4 {[%emt 0:01:19]} g6 {[%emt 0:00:10]} 4. O-O {[%emt 0:00:
00]} Bg7 {[%emt 0:00:04]} 5. a3 {[%emt 0:00:51]} Nf6 {[%emt 0:00:17]} 6. d3 {
[%emt 0:02:13]} d6 {[%emt 0:00:22]} 7. Re1 {[%emt 0:01:08]} O-O {[%emt 0:00:13]
} 8. Nc3 {[%emt 0:02:39]} a6 {[%emt 0:02:56]} 9. Bd2 {[%emt 0:02:40]} Re8 {
[%emt 0:00:52]} 10. Nd5 {[%emt 0:01:30]} Nxd5 {[%emt 0:02:31]} 11. Bxd5 {
[%emt 0:01:03]} Ne5 {[%emt 0:01:50]} 12. Rb1 {[%emt 0:04:19]} Bg4 {[%emt 0:00:
00]} 13. Re3 {[%emt 0:02:00]} Rb8 {[%emt 0:01:46]} 14. b4 {[%emt 0:03:22]}
Nxf3+ {[%emt 0:02:24]} 15. Rxf3 {[%emt 0:00:54]} Bxf3 {[%emt 0:00:25]} 16. Qxf3
{[%emt 0:00:08]} e6 {[%emt 0:00:18]} 17. Bc4 {[%emt 0:01:52]} d5 {[%emt 0:00:
00]} 18. exd5 {[%emt 0:00:37]} exd5 {[%emt 0:00:52]} 19. Bxd5 {[%emt 0:02:58]}
Rf8 {[%emt 0:01:06]} 20. bxc5 {[%emt 0:02:55]} Qd7 {[%emt 0:05:18]} 21. Rxb7 {
[%emt 0:07:03]} Rxb7 {[%emt 0:00:29]} 22. Bxb7 {[%emt 0:00:32]} Rb8 {[%emt 0:
00:00]} 23. c6 {[%emt 0:01:39]} Rxb7 {[%emt 0:04:16]} 24. cxb7 {[%emt 0:01:54]}
Be5 {[%emt 0:03:06]} 25. Bc3 {[%emt 0:03:49]} Qb5 {[%emt 0:02:22]} 26. Bb4 {
[%emt 0:06:01]} a5 {[%emt 0:00:59]} 27. c4 {[%emt 0:05:14]} Qa4 {[%emt 0:01:43]
} 28. Qe3 {[%emt 0:03:40]} axb4 {[%emt 0:02:16]} 29. g3 {[%emt 0:04:24]} Bc7 {
[%emt 0:08:26]} 30. Qb6 {[%emt 0:05:09]} Bxb6 {[%emt 0:02:03]} 31. b8=Q+ {
[%emt 0:01:53]} Kg7 {[%emt 0:00:23]} 32. Qe5+ {[%emt 0:01:10]} Kg8 {[%emt 0:00:
00]} 33. Qb8+ {[%emt 0:00:38]} Kg7 {[%emt 0:00:12]} 34. Qe5+ {[%emt 0:00:24]}
Kg8 {[%emt 0:02:19]} 35. Qb8+ {[%emt 0:00:27]} 1/2-1/2

[Event "44th Chess Olympiad Women 2022"]
[Site "Chennai"]
[Date "2022.08.08"]
[Round "10.72"]
[White "Pio Monteiro, Juliana"]
[Black "De Souza, Ivana Claudia Eyram"]
[Result "0-1"]
[WhiteElo "1319"]
[BlackElo "1167"]
[Annotator "NA RC"]
[PlyCount "74"]
[EventDate "2022.??.??"]
[TimeControl "60"]

1. e4 {[%emt 0:00:04]} e5 {[%emt 0:00:08]} 2. Nf3 {[%emt 0:00:07]} Nc6 {
[%emt 0:00:11]} 3. Bc4 {[%emt 0:00:04]} Nf6 {[%emt 0:00:15]} 4. d3 {[%emt 0:00:
00]} Bc5 {[%emt 0:00:24]} 5. O-O {[%emt 0:00:18]} O-O {[%emt 0:00:53]} 6. c3 {
[%emt 0:00:47]} a5 {[%emt 0:01:12]} 7. a4 {[%emt 0:00:37]} h6 {[%emt 0:01:02]}
8. h3 {[%emt 0:00:32]} d6 {[%emt 0:00:13]} 9. Re1 {[%emt 0:00:29]} Be6 {
[%emt 0:00:43]} 10. Ba2 {[%emt 0:00:41]} Qd7 {[%emt 0:01:57]} 11. Be3 {[%emt 0:
00:00]} Bxe3 {[%emt 0:00:32]} 12. Rxe3 {[%emt 0:01:56]} Bxa2 {[%emt 0:03:05]}
13. Rxa2 {[%emt 0:00:14]} Qe6 {[%emt 0:00:21]} 14. Ra1 {[%emt 0:00:50]} Rfe8 {
[%emt 0:04:27]} 15. Nbd2 {[%emt 0:01:37]} Nh5 {[%emt 0:03:00]} 16. Nh2 {
[%emt 0:03:46]} Nf4 {[%emt 0:02:25]} 17. Ndf1 {[%emt 0:01:34]} d5 {[%emt 0:00:
00]} 18. exd5 {[%emt 0:02:45]} Qxd5 {[%emt 0:01:50]} 19. Qf3 {[%emt 0:07:34]}
Qxf3 {[%emt 0:05:08]} 20. Nxf3 {[%emt 0:00:31]} Rad8 {[%emt 0:00:48]} 21. Rd1 {
[%emt 0:03:44]} e4 {[%emt 0:03:22]} 22. Ne1 {[%emt 0:06:35]} exd3 {[%emt 0:00:
00]} 23. Rxe8+ {[%emt 0:01:36]} Rxe8 {[%emt 0:00:30]} 24. Nxd3 {[%emt 0:01:07]}
Rd8 {[%emt 0:00:54]} 25. Ne3 {[%emt 0:15:52]} Nxd3 {[%emt 0:01:36]} 26. Rb1 {
[%emt 0:04:24]} Nc5 {[%emt 0:01:20]} 27. Ra1 {[%emt 0:02:43]} Ne5 {[%emt 0:00:
00]} 28. b4 {[%emt 0:01:55]} axb4 {[%emt 0:01:02]} 29. cxb4 {[%emt 0:00:18]}
Ne4 {[%emt 0:02:44]} 30. Rc1 {[%emt 0:03:26]} Rd4 {[%emt 0:08:52]} 31. Rxc7 {
[%emt 0:01:11]} Rxb4 {[%emt 0:01:23]} 32. a5 {[%emt 0:00:37]} Nd3 {[%emt 0:00:
00]} 33. Rc2 {[%emt 0:10:07]} Ra4 {[%emt 0:04:14]} 34. Rc7 {[%emt 0:09:26]}
Nec5 {[%emt 0:03:56]} 35. Kf1 {[%emt 0:03:57]} Rxa5 {[%emt 0:02:52]} 36. Ke2 {
[%emt 0:02:05]} Ra2+ {[%emt 0:02:14]} 37. Kd1 {[%emt 0:01:21]} Rxf2 {[%emt 0:
00:00]} 0-1

[Event "44th Chess Olympiad Women 2022"]
[Site "Chennai"]
[Date "2022.08.08"]
[Round "10.73"]
[White "Johnson, Daijah"]
[Black "Nema, Rabab Ahmed"]
[Result "0-1"]
[WhiteElo "1480"]
[BlackElo "1172"]
[Annotator "NA RC"]
[PlyCount "50"]
[EventDate "2022.??.??"]
[TimeControl "60"]

1. d4 {[%emt 0:00:03]} Nf6 {[%emt 0:00:01]} 2. c4 {[%emt 0:00:09]} g6 {[%emt 0:
00:00]} 3. Nc3 {[%emt 0:00:08]} Bg7 {[%emt 0:00:02]} 4. e4 {[%emt 0:00:13]} d6
{[%emt 0:00:03]} 5. h3 {[%emt 0:00:35]} O-O {[%emt 0:00:08]} 6. Nf3 {[%emt 0:
00:00]} Nbd7 {[%emt 0:00:25]} 7. Bd3 {[%emt 0:00:51]} e5 {[%emt 0:00:20]} 8. d5
{[%emt 0:01:46]} a5 {[%emt 0:01:21]} 9. Be3 {[%emt 0:01:20]} Nc5 {[%emt 0:00:
00]} 10. Bxc5 {[%emt 0:02:24]} dxc5 {[%emt 0:00:05]} 11. Nxe5 {[%emt 0:00:48]}
Nxe4 {[%emt 0:00:27]} 12. Bxe4 {[%emt 0:03:10]} Bxe5 {[%emt 0:00:25]} 13. O-O {
[%emt 0:01:48]} Qg5 {[%emt 0:09:08]} 14. Qf3 {[%emt 0:15:45]} f5 {[%emt 0:00:
00]} 15. Bc2 {[%emt 0:05:17]} Bd7 {[%emt 0:03:07]} 16. Rfe1 {[%emt 0:04:33]}
Rae8 {[%emt 0:03:17]} 17. Ba4 {[%emt 0:12:05]} Bxc3 {[%emt 0:20:57]} 18. Rxe8 {
[%emt 0:01:16]} Bxe8 {[%emt 0:00:34]} 19. Bxe8 {[%emt 0:00:18]} Bxb2 {[%emt 0:
00:00]} 20. Rb1 {[%emt 0:01:01]} Rxe8 {[%emt 0:00:48]} 21. Rxb2 {[%emt 0:00:25]
} Qc1+ {[%emt 0:00:54]} 22. Kh2 {[%emt 0:02:10]} Qxb2 {[%emt 0:00:14]} 23. Qb3
{[%emt 0:02:03]} Qxb3 {[%emt 0:01:36]} 24. axb3 {[%emt 0:00:11]} Re2 {[%emt 0:
00:00]} 25. Kg3 {[%emt 0:00:57]} Rb2 {[%emt 0:00:19]} 0-1

[Event "44th Chess Olympiad Women 2022"]
[Site "Chennai"]
[Date "2022.08.08"]
[Round "10.78"]
[White "Alvarado Perez, Coralys M."]
[Black "Finnbogadottir, Tinna Kristin"]
[Result "0-1"]
[WhiteElo "1471"]
[BlackElo "1828"]
[Annotator "NA RC"]
[PlyCount "100"]
[EventDate "2022.??.??"]
[TimeControl "60"]

1. e4 {[%emt 0:00:12]} c5 {[%emt 0:00:04]} 2. g3 {[%emt 0:00:11]} d5 {[%emt 0:
00:00]} 3. d3 {[%emt 0:00:49]} dxe4 {[%emt 0:00:56]} 4. dxe4 {[%emt 0:00:08]}
Qxd1+ {[%emt 0:00:10]} 5. Kxd1 {[%emt 0:00:06]} Nc6 {[%emt 0:01:29]} 6. c3 {
[%emt 0:01:14]} Nf6 {[%emt 0:02:54]} 7. f3 {[%emt 0:02:54]} g6 {[%emt 0:04:13]}
8. Be3 {[%emt 0:00:28]} b6 {[%emt 0:00:41]} 9. Na3 {[%emt 0:05:39]} Bg7 {
[%emt 0:01:35]} 10. Bg2 {[%emt 0:02:29]} Ba6 {[%emt 0:06:53]} 11. Kc2 {[%emt 0:
00:00]} Rd8 {[%emt 0:00:45]} 12. Bf1 {[%emt 0:02:57]} Bb7 {[%emt 0:07:59]} 13.
Ne2 {[%emt 0:04:15]} Ne5 {[%emt 0:02:15]} 14. Bg2 {[%emt 0:00:46]} Ba6 {
[%emt 0:00:57]} 15. Nf4 {[%emt 0:00:51]} e6 {[%emt 0:07:20]} 16. Rad1 {[%emt 0:
00:00]} O-O {[%emt 0:00:26]} 17. Rxd8 {[%emt 0:00:33]} Rxd8 {[%emt 0:00:06]}
18. Rd1 {[%emt 0:00:08]} Rxd1 {[%emt 0:01:48]} 19. Kxd1 {[%emt 0:00:08]} g5 {
[%emt 0:02:19]} 20. Ne2 {[%emt 0:01:14]} g4 {[%emt 0:01:55]} 21. fxg4 {[%emt 0:
00:00]} Nexg4 {[%emt 0:03:14]} 22. Bg1 {[%emt 0:00:14]} Bd3 {[%emt 0:01:24]}
23. Nf4 {[%emt 0:05:14]} Bxe4 {[%emt 0:02:02]} 24. Bxe4 {[%emt 0:00:07]} Nxe4 {
[%emt 0:00:05]} 25. Nb5 {[%emt 0:00:47]} a5 {[%emt 0:01:49]} 26. Ne2 {[%emt 0:
00:00]} Nef2+ {[%emt 0:03:58]} 27. Kc2 {[%emt 0:01:54]} Nh3 {[%emt 0:00:10]}
28. Nd6 {[%emt 0:01:34]} Nxg1 {[%emt 0:00:25]} 29. Nxg1 {[%emt 0:00:10]} Nxh2 {
[%emt 0:00:18]} 30. Nc4 {[%emt 0:00:11]} b5 {[%emt 0:02:00]} 31. Nxa5 {[%emt 0:
00:00]} Be5 {[%emt 0:00:12]} 32. Ne2 {[%emt 0:00:28]} Nf1 {[%emt 0:04:17]} 33.
Nb7 {[%emt 0:01:39]} Nxg3 {[%emt 0:05:15]} 34. Nxg3 {[%emt 0:00:08]} Bxg3 {
[%emt 0:00:04]} 35. Nxc5 {[%emt 0:00:05]} h5 {[%emt 0:01:12]} 36. Ne4 {[%emt 0:
00:00]} h4 {[%emt 0:01:10]} 37. Kd3 {[%emt 0:00:30]} Be5 {[%emt 0:09:40]} 38.
Ng5 {[%emt 0:01:09]} Kf8 {[%emt 0:01:26]} 39. b3 {[%emt 0:00:37]} Ke7 {[%emt 0:
00:00]} 40. c4 {[%emt 0:00:55]} b4 {[%emt 0:00:16]} 41. Ke4 {[%emt 0:30:10]} f6
{[%emt 0:35:50]} 42. Nh3 {[%emt 0:00:15]} Kd6 {[%emt 0:01:58]} 43. Nf2 {
[%emt 0:00:31]} Bg3 {[%emt 0:01:39]} 44. Nd3 {[%emt 0:00:21]} f5+ {[%emt 0:00:
00]} 45. Kf3 {[%emt 0:00:08]} e5 {[%emt 0:00:32]} 46. Nxb4 {[%emt 0:00:13]} e4+
{[%emt 0:00:17]} 47. Kg2 {[%emt 0:00:12]} f4 {[%emt 0:00:34]} 48. Nc2 {[%emt 0:
00:00]} Kc5 {[%emt 0:00:53]} 49. a4 {[%emt 0:01:17]} f3+ {[%emt 0:01:56]} 50.
Kf1 {[%emt 0:04:00]} h3 {[%emt 0:04:03]} 0-1

[Event "44th Chess Olympiad Women 2022"]
[Site "Chennai"]
[Date "2022.08.08"]
[Round "10.78"]
[White "Ptacnikova, Lenka"]
[Black "Morales Santos, Natasha"]
[Result "0-1"]
[WhiteElo "2066"]
[BlackElo "1924"]
[Annotator "NA RC"]
[PlyCount "134"]
[EventDate "2022.??.??"]
[TimeControl "60"]

1. e4 {[%emt 0:00:02]} e6 {[%emt 0:00:10]} 2. d4 {[%emt 0:00:12]} d5 {[%emt 0:
00:00]} 3. Nd2 {[%emt 0:00:13]} Be7 {[%emt 0:00:13]} 4. Ngf3 {[%emt 0:02:07]}
Nf6 {[%emt 0:02:45]} 5. Bd3 {[%emt 0:04:30]} c5 {[%emt 0:01:05]} 6. dxc5 {
[%emt 0:01:06]} O-O {[%emt 0:03:36]} 7. O-O {[%emt 0:07:41]} a5 {[%emt 0:02:11]
} 8. a4 {[%emt 0:06:41]} Na6 {[%emt 0:02:02]} 9. exd5 {[%emt 0:03:38]} Nxd5 {
[%emt 0:14:59]} 10. Bxa6 {[%emt 0:15:28]} Rxa6 {[%emt 0:03:14]} 11. Nb3 {
[%emt 0:00:32]} Qc7 {[%emt 0:09:06]} 12. Qd4 {[%emt 0:09:08]} Rd8 {[%emt 0:00:
00]} 13. c3 {[%emt 0:14:34]} f6 {[%emt 0:10:16]} 14. Qc4 {[%emt 0:08:18]} e5 {
[%emt 0:10:08]} 15. Re1 {[%emt 0:00:13]} Be6 {[%emt 0:08:50]} 16. Qb5 {[%emt 0:
00:00]} Bf7 {[%emt 0:02:19]} 17. Bd2 {[%emt 0:02:05]} Rc8 {[%emt 0:03:54]} 18.
c4 {[%emt 0:12:15]} Be8 {[%emt 0:02:52]} 19. cxd5 {[%emt 0:00:59]} Bxb5 {
[%emt 0:00:48]} 20. axb5 {[%emt 0:00:11]} Raa8 {[%emt 0:00:30]} 21. d6 {
[%emt 0:00:39]} Bxd6 {[%emt 0:00:17]} 22. cxd6 {[%emt 0:00:36]} Qxd6 {[%emt 0:
00:00]} 23. Nxa5 {[%emt 0:01:30]} Qd5 {[%emt 0:00:28]} 24. Bc3 {[%emt 0:03:28]}
Qxb5 {[%emt 0:00:17]} 25. Nxb7 {[%emt 0:05:29]} Qxb7 {[%emt 0:00:07]} 26. h3 {
[%emt 0:00:11]} Qb3 {[%emt 0:01:01]} 27. Nd2 {[%emt 0:00:31]} Qc2 {[%emt 0:00:
00]} 28. Rac1 {[%emt 0:00:24]} Qg6 {[%emt 0:00:24]} 29. Ne4 {[%emt 0:00:18]} h5
{[%emt 0:00:22]} 30. Nd6 {[%emt 0:01:16]} Rd8 {[%emt 0:00:30]} 31. Bb4 {
[%emt 0:00:45]} Rab8 {[%emt 0:00:38]} 32. Ba3 {[%emt 0:00:16]} Rxd6 {[%emt 0:
00:00]} 33. Bxd6 {[%emt 0:00:11]} Rxb2 {[%emt 0:00:04]} 34. Red1 {[%emt 0:00:
00]} Rc2 {[%emt 0:00:42]} 35. Rxc2 {[%emt 0:00:34]} Qxc2 {[%emt 0:00:02]} 36.
Rf1 {[%emt 0:00:08]} Qd3 {[%emt 0:00:36]} 37. Bc5 {[%emt 0:00:11]} f5 {[%emt 0:
00:00]} 38. f3 {[%emt 0:00:44]} Qd5 {[%emt 0:00:34]} 39. Bf2 {[%emt 0:00:29]}
g5 {[%emt 0:00:29]} 40. Re1 {[%emt 0:00:25]} Kf7 {[%emt 0:00:37]} 41. Bg3 {
[%emt 0:08:27]} f4 {[%emt 0:10:43]} 42. Bf2 {[%emt 0:00:10]} g4 {[%emt 0:00:45]
} 43. hxg4 {[%emt 0:01:06]} hxg4 {[%emt 0:00:02]} 44. fxg4 {[%emt 0:04:11]} e4
{[%emt 0:01:28]} 45. Rf1 {[%emt 0:04:03]} Kg6 {[%emt 0:02:30]} 46. Bh4 {
[%emt 0:00:40]} Qd4+ {[%emt 0:04:03]} 47. Kh2 {[%emt 0:01:49]} Qh8 {[%emt 0:00:
00]} 48. Kh3 {[%emt 0:00:27]} Qc3+ {[%emt 0:00:10]} 49. Kh2 {[%emt 0:00:11]}
Qd2 {[%emt 0:01:00]} 50. Rf2 {[%emt 0:00:43]} Qe1 {[%emt 0:02:46]} 51. g5 {
[%emt 0:00:22]} f3 {[%emt 0:02:24]} 52. Bg3 {[%emt 0:03:11]} Qd1 {[%emt 0:00:
00]} 53. gxf3 {[%emt 0:00:39]} e3 {[%emt 0:01:04]} 54. Rg2 {[%emt 0:04:04]}
Qxf3 {[%emt 0:00:32]} 55. Bh4 {[%emt 0:04:13]} Qf1 {[%emt 0:02:21]} 56. Rg1 {
[%emt 0:00:25]} e2 {[%emt 0:01:19]} 57. Be1 {[%emt 0:00:46]} Qf4+ {[%emt 0:00:
00]} 58. Kh3 {[%emt 0:02:12]} Qf3+ {[%emt 0:01:02]} 59. Kh2 {[%emt 0:00:28]}
Qf1 {[%emt 0:00:42]} 60. Bh4 {[%emt 0:01:14]} Kh5 {[%emt 0:00:35]} 61. Be1 {
[%emt 0:00:30]} Qf4+ {[%emt 0:00:17]} 62. Kh3 {[%emt 0:01:04]} Qe3+ {[%emt 0:
00:00]} 63. Kh2 {[%emt 0:00:11]} Qe5+ {[%emt 0:00:26]} 64. Kh3 {[%emt 0:00:28]}
Kg6 {[%emt 0:00:43]} 65. Rg2 {[%emt 0:01:28]} Qe3+ {[%emt 0:00:39]} 66. Kh2 {
[%emt 0:00:36]} Qf4+ {[%emt 0:00:18]} 67. Kh1 {[%emt 0:00:07]} Qf1+ {[%emt 0:
00:00]} 0-1

[Event "44th Chess Olympiad Women 2022"]
[Site "Chennai"]
[Date "2022.08.08"]
[Round "10.78"]
[White "Rivera Negron Yanira"]
[Black "Johannsdottir, Johanna Bjorg"]
[Result "0-1"]
[WhiteElo "1770"]
[BlackElo "1976"]
[Annotator "NA RC"]
[PlyCount "62"]
[EventDate "2022.??.??"]
[TimeControl "60"]

1. d4 {[%emt 0:00:06]} Nf6 {[%emt 0:00:08]} 2. Nf3 {[%emt 0:00:07]} e6 {
[%emt 0:00:04]} 3. Bf4 {[%emt 0:00:16]} c5 {[%emt 0:00:07]} 4. e3 {[%emt 0:00:
00]} cxd4 {[%emt 0:00:12]} 5. exd4 {[%emt 0:00:15]} b6 {[%emt 0:00:07]} 6. Bd3
{[%emt 0:00:29]} Bb7 {[%emt 0:00:15]} 7. Nbd2 {[%emt 0:00:26]} Be7 {[%emt 0:00:
00]} 8. h3 {[%emt 0:00:27]} d6 {[%emt 0:00:26]} 9. O-O {[%emt 0:01:40]} O-O {
[%emt 0:00:05]} 10. c3 {[%emt 0:01:08]} Nbd7 {[%emt 0:00:10]} 11. Qe2 {[%emt 0:
00:00]} Qc7 {[%emt 0:00:26]} 12. Rfe1 {[%emt 0:03:26]} Rfe8 {[%emt 0:00:19]}
13. Ba6 {[%emt 0:02:31]} Bxa6 {[%emt 0:05:45]} 14. Qxa6 {[%emt 0:00:11]} Nd5 {
[%emt 0:03:25]} 15. Bh2 {[%emt 0:02:21]} Qc6 {[%emt 0:14:14]} 16. Rad1 {
[%emt 0:06:28]} Rac8 {[%emt 0:03:32]} 17. Qd3 {[%emt 0:02:55]} b5 {[%emt 0:00:
00]} 18. Ne4 {[%emt 0:04:35]} Nf8 {[%emt 0:02:03]} 19. Nfd2 {[%emt 0:09:53]}
Ng6 {[%emt 0:01:30]} 20. Qg3 {[%emt 0:04:18]} Ndf4 {[%emt 0:07:17]} 21. Qe3 {
[%emt 0:06:31]} e5 {[%emt 0:03:23]} 22. dxe5 {[%emt 0:04:15]} dxe5 {[%emt 0:00:
00]} 23. Nf3 {[%emt 0:07:35]} f5 {[%emt 0:06:23]} 24. Ng3 {[%emt 0:07:46]} Bc5
{[%emt 0:03:06]} 25. Qd2 {[%emt 0:08:13]} Nxg2 {[%emt 0:00:55]} 26. Qd5+ {
[%emt 0:06:15]} Qxd5 {[%emt 0:00:11]} 27. Rxd5 {[%emt 0:00:04]} Nxe1 {[%emt 0:
00:00]} 28. Nxe1 {[%emt 0:00:04]} Nf4 {[%emt 0:00:16]} 29. Rd7 {[%emt 0:00:35]}
Nxh3+ {[%emt 0:00:41]} 30. Kg2 {[%emt 0:00:22]} Nf4+ {[%emt 0:00:17]} 31. Kf3 {
[%emt 0:00:34]} g6 {[%emt 0:00:30]} 0-1

[Event "44th Chess Olympiad Women 2022"]
[Site "Chennai"]
[Date "2022.08.08"]
[Round "10.78"]
[White "Thorsteinsdottir, Hallgerdur"]
[Black "Vega Jimenez, Keyshla M."]
[Result "1-0"]
[WhiteElo "1934"]
[BlackElo "1653"]
[Annotator "NA RC"]
[PlyCount "95"]
[EventDate "2022.??.??"]
[TimeControl "60"]

1. e4 {[%emt 0:00:07]} e5 {[%emt 0:00:09]} 2. Nf3 {[%emt 0:00:10]} Nc6 {
[%emt 0:00:08]} 3. Bc4 {[%emt 0:00:18]} Bc5 {[%emt 0:00:21]} 4. c3 {[%emt 0:00:
00]} Nf6 {[%emt 0:00:24]} 5. d3 {[%emt 0:00:16]} O-O {[%emt 0:00:35]} 6. O-O {
[%emt 0:00:19]} d6 {[%emt 0:00:59]} 7. Re1 {[%emt 0:00:39]} a6 {[%emt 0:01:02]}
8. a4 {[%emt 0:00:31]} Ba7 {[%emt 0:01:44]} 9. h3 {[%emt 0:06:45]} h6 {[%emt 0:
00:00]} 10. b4 {[%emt 0:03:00]} Ne7 {[%emt 0:03:37]} 11. d4 {[%emt 0:06:35]}
Ng6 {[%emt 0:03:50]} 12. Nbd2 {[%emt 0:04:18]} Re8 {[%emt 0:03:43]} 13. Qc2 {
[%emt 0:03:55]} Nh5 {[%emt 0:15:53]} 14. Nf1 {[%emt 0:19:50]} Qf6 {[%emt 0:00:
00]} 15. Ne3 {[%emt 0:02:57]} c6 {[%emt 0:04:39]} 16. Ng4 {[%emt 0:08:23]} Bxg4
{[%emt 0:04:17]} 17. hxg4 {[%emt 0:00:06]} Nhf4 {[%emt 0:00:32]} 18. Be3 {
[%emt 0:04:53]} Nf8 {[%emt 0:18:06]} 19. b5 {[%emt 0:02:48]} cxb5 {[%emt 0:00:
00]} 20. axb5 {[%emt 0:00:09]} Rec8 {[%emt 0:00:09]} 21. bxa6 {[%emt 0:09:03]}
bxa6 {[%emt 0:05:49]} 22. Bxa6 {[%emt 0:00:53]} Rc7 {[%emt 0:00:20]} 23. Qd2 {
[%emt 0:04:37]} N8e6 {[%emt 0:01:59]} 24. g3 {[%emt 0:08:10]} Ng6 {[%emt 0:00:
00]} 25. Be2 {[%emt 0:01:08]} Qe7 {[%emt 0:02:36]} 26. Kg2 {[%emt 0:03:11]}
Rac8 {[%emt 0:00:54]} 27. Ba6 {[%emt 0:00:42]} Rb8 {[%emt 0:00:08]} 28. Reb1 {
[%emt 0:01:17]} Qd8 {[%emt 0:03:06]} 29. Rb5 {[%emt 0:03:15]} Rxb5 {[%emt 0:00:
00]} 30. Bxb5 {[%emt 0:00:06]} Qb8 {[%emt 0:00:22]} 31. c4 {[%emt 0:01:11]} Rb7
{[%emt 0:03:54]} 32. Bc6 {[%emt 0:03:21]} Rb2 {[%emt 0:00:49]} 33. Qd1 {
[%emt 0:00:41]} Rb4 {[%emt 0:02:18]} 34. Bb5 {[%emt 0:01:09]} exd4 {[%emt 0:00:
00]} 35. Bd2 {[%emt 0:01:08]} Rxb5 {[%emt 0:02:27]} 36. cxb5 {[%emt 0:00:07]}
Bc5 {[%emt 0:00:04]} 37. Qa4 {[%emt 0:00:34]} Kh7 {[%emt 0:00:20]} 38. Bb4 {
[%emt 0:01:19]} Qb7 {[%emt 0:00:42]} 39. Bxc5 {[%emt 0:00:54]} dxc5 {[%emt 0:
00:00]} 40. Nd2 {[%emt 0:00:35]} Ne5 {[%emt 0:00:40]} 41. Qa6 {[%emt 0:01:49]}
Qd7 {[%emt 0:02:11]} 42. b6 {[%emt 0:04:50]} Nd8 {[%emt 0:00:28]} 43. Qa8 {
[%emt 0:05:17]} Ndc6 {[%emt 0:03:02]} 44. b7 {[%emt 0:02:31]} c4 {[%emt 0:00:
00]} 45. b8=Q {[%emt 0:04:24]} Nxb8 {[%emt 0:00:07]} 46. Qxb8 {[%emt 0:00:07]}
f6 {[%emt 0:02:39]} 47. Nf3 {[%emt 0:10:46]} Ng6 {[%emt 0:06:15]} 48. Ra8 {
[%emt 0:01:01]} 1-0